bitfinex/quotes_ETHUSD_20260129
["timestamp","ask_amount","ask_price","bid_price","bid_amount"]
[1769707393428,2.48574266,2845.0,2844.1,0.002]
[1769707393636,2.48574266,2844.8,2844.1,0.002]
[1769707394009,3.3644539,2845.1,2844.1,0.002]
[1769707394232,2.48574266,2844.8,2844.1,0.002]
[1769707394748,2.48574266,2844.8,2843.9,0.002]
[1769707395139,2.48574266,2844.8,2844.0,0.736]
[1769707395438,2.48574266,2844.1,2844.0,0.736]
[1769707395607,2.48574266,2844.2,2844.0,0.736]
[1769707396734,2.48574266,2844.3,2844.0,0.736]
[1769707396928,2.48574266,2844.3,2844.1,0.736]
[1769707397328,2.48574266,2844.2,2844.1,0.736]
[1769707397833,3.1080167,2844.4,2844.1,0.736]
[1769707398604,3.1080167,2844.5,2844.0,0.736]
[1769707398801,2.50778636,2844.1,2844.0,0.736]
[1769707399037,3.1080167,2844.5,2844.0,0.736]
[1769707399535,0.87879645,2844.8,2844.0,0.738]
[1769707399901,5.23000358,2844.9,2844.0,0.002]
[1769707400134,0.87449683,2844.8,2844.0,0.002]
[1769707400336,5.22572021,2844.8,2844.0,0.002]
[1769707400527,4.35122338,2844.8,2844.1,0.736]
[1769707400838,6.2160334,2845.4,2844.2,0.736]
[1769707401052,0.87857571,2845.6,2844.2,0.736]
[1769707401536,6.2160334,2846.0,2844.2,0.736]
[1769707401746,0.87845672,2845.9,2844.2,0.736]
[1769707402143,13.3816161,2846.3,2844.3,0.87895088]
[1769707402144,0.98176413,2846.2,2844.3,0.87895088]
[1769707402443,14.26098023,2846.2,2844.4,0.51307544]
[1769707402645,14.26098023,2846.2,2844.2,1.61498121]
[1769707403030,14.26098023,2846.2,2843.9,17.3684045]
[1769707403236,13.3816161,2845.8,2843.9,0.87907426]
[1769707403542,13.3816161,2845.8,2844.0,1.615041]
[1769707403717,13.3816161,2845.8,2844.2,0.87897195]
[1769707403917,0.87936413,2846.2,2844.3,1.17549208]
[1769707403918,14.26098023,2846.2,2844.3,1.17549208]
[1769707404119,14.26098023,2846.2,2844.4,0.87891998]
[1769707404519,14.26098023,2846.2,2844.6,13.85214236]
[1769707404520,0.879366,2846.2,2844.6,13.85214236]
[1769707404716,0.87937471,2846.2,2844.6,13.85214236]
[1769707404920,14.26099081,2846.2,2844.4,0.87891998]
[1769707405238,14.26099081,2846.2,2844.5,0.736]
[1769707405239,15.15905929,2846.1,2844.5,0.736]
[1769707405815,0.87937471,2846.2,2844.5,13.63024451]
[1769707406429,0.001,2846.2,2844.5,13.77311155]
[1769707406653,0.001,2846.2,2844.6,0.736]
[1769707408044,0.001,2846.2,2844.6,13.63024451]
[1769707408446,0.001,2846.2,2844.7,13.7730718]
[1769707408651,0.001,2846.2,2844.8,1.8024381]
[1769707409651,0.001,2846.2,2844.3,13.33373659]
[1769707409652,12.98839897,2846.2,2844.9,0.736]
[1769707409853,0.001,2846.2,2844.9,0.736]
[1769707410653,0.001,2846.2,2845.0,0.87873462]
[1769707411225,0.001,2846.2,2845.0,13.77297913]
[1769707411429,0.001,2846.2,2845.0,0.87873462]
[1769707411730,0.001,2846.0,2845.1,1.24897519]
[1769707411947,0.001,2846.0,2845.1,0.736]
[1769707412453,0.001,2846.2,2845.1,0.736]
[1769707412632,3.51261951,2846.9,2845.2,0.87867285]
[1769707413232,16.47960187,2846.9,2845.2,0.87867285]
[1769707413439,16.47960187,2846.9,2845.3,0.736]
[1769707413651,14.70275736,2846.8,2845.3,0.736]
[1769707414662,14.70275736,2846.8,2845.4,0.736]
[1769707414831,13.84519221,2846.7,2845.4,0.736]
[1769707415157,13.84519221,2846.7,2845.5,0.736]
[1769707418535,13.84519221,2846.7,2845.5,1.61457439]
[1769707418735,14.57175361,2846.7,2845.6,0.51290138]
[1769707419346,14.57175361,2846.7,2845.5,1.61456088]
[1769707419665,14.57175361,2846.7,2845.5,0.87856088]
[1769707419962,0.87820985,2846.7,2845.6,0.736]
[1769707420265,0.87820985,2846.7,2845.6,1.61454906]
[1769707420453,0.87820985,2846.7,2845.6,1.61454715]
[1769707420657,3.1080167,2847.1,2845.6,14.47115781]
[1769707420856,3.1080167,2847.1,2845.7,14.30372644]
[1769707421036,3.1080167,2847.1,2845.8,13.73509825]
[1769707421929,3.98611,2847.1,2845.8,13.73509825]
[1769707422129,3.1080167,2847.1,2845.8,13.73509825]
[1769707422334,3.1080167,2847.1,2846.0,12.85661066]
[1769707422540,4.35122338,2847.5,2846.0,12.85661066]
[1769707423167,4.35122338,2847.5,2846.1,13.22231899]
[1769707423366,0.28778684,2847.9,2846.2,7.99270062]
[1769707423942,0.87881207,2848.0,2846.2,7.99270062]
[1769707424247,6.2160334,2848.1,2846.3,8.87981018]
[1769707424248,7.0938337,2848.1,2846.3,8.87981018]
[1769707424658,12.96698236,2848.0,2846.3,8.87981018]
[1769707424857,12.96698236,2848.0,2846.4,0.736]
[1769707425366,12.96698236,2847.9,2846.5,0.87827156]
[1769707426164,12.96698236,2847.9,2846.6,0.736]
[1769707426871,12.96698236,2847.9,2846.5,0.87827156]
[1769707427171,12.96698236,2847.9,2846.6,1.17513578]
[1769707427339,13.84483397,2847.9,2846.7,0.87820985]
[1769707428067,13.84483397,2847.9,2846.8,0.736]
[1769707429267,13.84483397,2847.9,2846.9,0.736]
[1769707430041,13.84483397,2847.9,2846.9,1.61414772]
[1769707430666,13.84483397,2847.9,2846.9,0.736]
[1769707431382,13.84483397,2847.9,2846.9,1.6141467]
[1769707432581,13.8448255,2847.9,2846.9,1.6141467]
[1769707433458,7.09383315,2848.1,2846.9,1.6141467]
[1769707433772,6.2160334,2848.1,2846.5,7.99270062]
[1769707433972,6.2160334,2848.1,2847.0,0.735]
[1769707434866,7.09382198,2848.1,2847.0,0.735]
[1769707435041,7.09382198,2848.1,2846.6,1.15058366]
[1769707435042,12.96698236,2848.0,2846.6,1.15058366]
[1769707435271,12.96698236,2848.0,2846.7,0.735]
[1769707435474,12.96698236,2848.0,2846.4,3.51313594]
[1769707435677,12.96698236,2848.0,2846.5,0.735]
[1769707435860,13.8448137,2848.0,2846.6,0.8782407]
[1769707436078,13.8448137,2848.0,2847.1,0.002]
[1769707437063,13.8448137,2848.0,2847.1,0.737]
[1769707437869,13.8448137,2848.0,2847.1,0.002]
[1769707438797,13.8448137,2848.0,2847.1,0.88008622]
[1769707439005,13.8448137,2848.0,2847.1,0.002]
[1769707441271,13.84479672,2848.0,2847.1,0.002]
[1769707441565,13.84480326,2848.0,2847.1,0.002]
[1769707441779,6.2160334,2848.1,2847.1,0.002]
[1769707442319,8.08084342,2848.6,2847.1,8.8821855]
[1769707442494,0.0881428,2848.6,2847.1,0.88948488]
[1769707443010,14.96577056,2848.6,2847.1,0.88948488]
[1769707443192,14.96577056,2848.6,2847.2,0.735]
[1769707443507,14.96577056,2848.6,2847.1,0.002]
[1769707443717,14.96577056,2848.6,2847.1,0.737]
[1769707443870,14.96577056,2848.6,2847.2,0.87805563]
[1769707444209,14.0881428,2848.6,2847.2,0.87805563]
[1769707444403,10.12809744,2849.2,2847.3,0.51272782]
[1769707444578,10.12809744,2849.2,2847.7,8.55197862]
[1769707444899,14.0,2849.1,2847.8,0.735]
[1769707445273,14.0,2849.1,2847.9,0.735]
[1769707446201,0.87750087,2849.0,2848.0,0.87780898]
[1769707446407,14.0,2848.9,2848.1,0.51240449]
[1769707447791,14.0,2848.9,2848.1,0.34443178]
[1769707448112,12.43206681,2850.0,2848.1,13.15928243]
[1769707448295,20.91176528,2851.6,2848.9,2.82367791]
[1769707448296,13.91720694,2850.5,2848.9,2.82367791]
[1769707448494,12.74207585,2850.5,2849.0,0.28236779]
[1769707448701,0.735,2850.4,2848.5,12.81485065]
[1769707448876,14.91848017,2850.8,2848.4,0.87768571]
[1769707448877,14.91848017,2850.8,2848.9,13.28174637]
[1769707449405,14.91848017,2850.8,2849.2,12.81485065]
[1769707450271,14.91848017,2850.8,2849.3,0.87740848]
[1769707450479,14.91848017,2850.8,2849.4,1.72018931]
[1769707450689,14.91848017,2850.8,2849.3,0.87740848]
[1769707450888,14.91848017,2850.8,2849.3,13.69225913]
[1769707451088,12.74207585,2851.3,2849.3,13.69225913]
[1769707451296,0.001,2851.5,2849.3,13.69225913]
[1769707451472,0.735,2851.2,2849.3,13.69225913]
[1769707451673,0.735,2851.2,2849.5,12.81485065]
[1769707452003,0.735,2851.3,2849.5,12.81485065]
[1769707452210,0.001,2851.5,2849.5,12.81485065]
[1769707452211,0.736,2851.5,2849.5,12.81485065]
[1769707452706,0.001,2851.5,2849.7,12.81485065]
[1769707453188,32.63338275,2852.5,2849.7,12.81485065]
[1769707453387,2.72413069,2852.4,2849.9,12.81485065]
[1769707453614,2.72413069,2852.4,2850.1,12.81485065]
[1769707453784,1.98913069,2852.4,2850.1,12.81485065]
[1769707453984,2.72413069,2852.4,2850.3,12.81485065]
[1769707454495,2.72413069,2852.4,2850.5,12.81485065]
[1769707454989,0.735,2852.3,2850.5,12.81485065]
[1769707455601,0.735,2852.2,2850.5,12.81485065]
[1769707455802,19.8913069,2852.5,2850.5,12.81485065]
[1769707456009,19.8913069,2852.5,2850.7,12.81485065]
[1769707456209,12.74207585,2853.5,2850.9,12.81485065]
[1769707456428,12.74207585,2853.3,2850.8,0.735]
[1769707456720,12.74207585,2853.1,2850.9,0.87691606]
[1769707458339,12.74207585,2853.1,2850.9,13.69176671]
[1769707458491,2.00920759,2853.0,2851.2,0.87682379]
[1769707459328,2.00920759,2853.0,2851.2,13.69167444]
[1769707459935,1.27420759,2853.0,2851.2,13.69167444]
[1769707460223,0.735,2853.1,2851.2,13.69167444]
[1769707460813,0.001,2852.9,2851.2,13.69167444]
[1769707461119,0.735,2852.8,2851.2,13.69167444]
[1769707461428,0.735,2852.7,2851.2,13.69167444]
[1769707462912,0.735,2852.7,2851.2,0.87682379]
[1769707463113,0.735,2852.7,2851.2,1.80661798]
[1769707463309,1.61136948,2852.7,2851.2,1.80661798]
[1769707464325,14.35344533,2852.7,2851.2,0.87682379]
[1769707464532,14.35344533,2852.7,2850.3,13.69192053]
[1769707464838,14.35344533,2852.7,2850.4,3.5082002]
[1769707466623,13.61844533,2852.7,2850.4,3.5082002]
[1769707466922,10.92911874,2852.5,2850.4,3.5082002]
[1769707467222,10.92911874,2852.3,2850.4,3.5082002]
[1769707467394,10.92911874,2852.1,2850.4,0.87706988]
[1769707467794,10.92911874,2852.1,2850.3,0.87708067]
[1769707468641,10.92911874,2851.8,2850.1,0.87714075]
[1769707469020,10.92911874,2851.8,2849.2,3.50971024]
[1769707469021,10.92911874,2850.9,2849.3,0.87738656]
[1769707469212,10.92911874,2850.9,2847.9,0.002]
[1769707469213,10.92911874,2850.9,2849.0,0.87747144]
[1769707469413,10.92911874,2850.7,2848.6,3.51046673]
[1769707469727,10.92911874,2850.7,2849.0,0.87747998]
[1769707469929,10.92911874,2850.7,2848.9,0.87751088]
[1769707470099,10.92911874,2850.7,2849.0,0.87749962]
[1769707470300,10.92911874,2850.7,2848.9,0.87751374]
[1769707470502,10.92911874,2850.5,2848.9,0.87751374]
[1769707470801,11.80618862,2850.4,2848.5,0.8776549]
[1769707472227,0.734,2850.3,2848.5,0.8776549]
[1769707472405,11.66311874,2850.3,2848.5,0.8776549]
[1769707472998,1.61113142,2850.2,2848.5,0.8776549]
[1769707473199,1.46399724,2850.1,2848.6,1.48137919]
[1769707473399,9.60489099,2850.1,2848.6,1.47838419]
[1769707473833,9.60489099,2850.1,2848.4,0.87768539]
[1769707474130,8.14089375,2849.9,2848.4,0.87768539]
[1769707474311,8.14089375,2849.9,2848.1,0.002]
[1769707475032,0.87725454,2849.8,2848.1,0.002]
[1769707475599,0.735,2849.7,2848.1,0.002]
[1769707475906,0.735,2849.7,2848.2,0.88518556]
[1769707476113,8.87589375,2849.7,2848.2,0.88518556]
[1769707476921,0.87731611,2849.6,2848.2,0.88518556]
[1769707477123,9.01820986,2849.6,2848.2,0.88518556]
[1769707477421,9.01820986,2849.6,2848.1,0.002]
[1769707477841,9.01820986,2849.6,2847.9,0.002]
[1769707477842,0.735,2849.5,2847.9,0.002]
[1769707478319,8.14089375,2849.4,2847.9,0.002]
[1769707478516,0.735,2849.3,2847.9,0.002]
[1769707479127,0.87743928,2849.2,2847.9,0.002]
[1769707479343,0.51221964,2849.1,2847.9,0.002]
[1769707479919,8.14089375,2848.9,2847.2,11.46189653]
[1769707480368,0.735,2848.8,2847.2,11.46189653]
[1769707480659,0.735,2848.7,2847.3,8.8498556]
[1769707481123,0.87762409,2848.6,2847.3,8.8498556]
[1769707481330,0.735,2848.5,2847.4,1.14618965]
[1769707481663,0.735,2848.5,2847.2,2.61204093]
[1769707482523,0.735,2848.5,2847.1,0.002]
[1769707483049,7.80444163,2848.6,2847.1,0.002]
[1769707483251,0.87762409,2848.6,2847.1,8.8518556]
[1769707483421,0.735,2848.5,2847.1,8.8518556]
[1769707483622,0.735,2848.4,2847.2,9.73504116]
[1769707484257,0.735,2848.3,2847.2,9.73504116]
[1769707485124,0.87774734,2848.2,2847.4,0.002]
[1769707485524,1.53483457,2848.2,2847.4,0.002]
[1769707485778,1.53483457,2848.2,2847.1,0.002]
[1769707486060,1.53483457,2848.2,2846.9,1e-08]
[1769707486224,1.53483457,2848.2,2846.4,8.8498556]
[1769707486736,1.53483457,2848.2,2846.0,0.002]
[1769707486939,0.91729564,2848.1,2846.7,8.8518556]
[1769707487128,0.91729564,2848.1,2846.8,9.73504116]
[1769707487561,0.87780898,2848.0,2846.8,9.73504116]
[1769707488355,0.87780898,2848.0,2846.7,0.002]
[1769707489027,5.30700462,2848.0,2846.3,8.8498556]
[1769707490187,5.30700462,2848.0,2845.7,0.002]
[1769707490188,14.54585509,2848.0,2845.7,0.002]
[1769707490328,14.54585509,2848.0,2845.7,8.8518556]
[1769707490329,9.23885047,2846.7,2845.7,8.8518556]
[1769707490531,0.735,2846.6,2845.7,0.002]
[1769707490744,0.735,2846.5,2845.7,0.002]
[1769707491129,0.735,2846.5,2844.4,0.002]
[1769707491333,8.87589375,2846.5,2844.5,7.8278912]
[1769707491853,8.87589375,2846.5,2844.5,8.70677936]
[1769707492048,0.87830241,2846.4,2844.6,8.455044]
[1769707492263,9.01919616,2846.4,2844.6,0.87087794]
[1769707492462,9.01919616,2846.4,2844.5,8.4630538]
[1769707492637,0.735,2846.3,2844.5,7.58416606]
[1769707493434,8.87589375,2846.3,2844.5,7.58416606]
[1769707493635,8.87589375,2846.3,2844.4,0.002]
[1769707493938,8.87589375,2846.3,2844.5,6.81394759]
[1769707493939,0.87839499,2846.1,2844.5,6.81394759]
[1769707494139,0.87839499,2846.1,2844.6,0.68159476]
[1769707494767,0.735,2846.0,2844.6,0.68159476]
[1769707494966,0.87839499,2846.1,2844.6,0.68159476]
[1769707495141,0.735,2846.0,2844.6,0.68159476]
[1769707495336,4.68851152,2846.0,2844.6,0.68159476]
[1769707495537,5.59656017,2846.0,2844.4,0.002]
[1769707495763,4.86156017,2846.0,2844.4,0.002]
[1769707495967,0.735,2845.9,2844.4,0.002]
[1769707496269,0.87848759,2845.8,2844.4,0.002]
[1769707496737,0.735,2845.7,2844.4,0.002]
[1769707497132,0.735,2845.7,2844.6,0.002]
[1769707497332,3.95351152,2845.6,2844.6,0.002]
[1769707497772,0.5127438,2845.7,2844.6,0.002]
[1769707498071,0.87858021,2845.5,2844.6,0.002]
[1769707498971,0.736,2845.4,2844.6,0.002]
[1769707499674,0.736,2845.3,2844.6,0.002]
[1769707499875,0.736,2845.2,2844.6,0.002]
[1769707500474,0.736,2845.1,2844.6,0.002]
[1769707501163,0.87836413,2846.2,2844.6,3.95452682]
[1769707501369,0.736,2846.1,2844.7,4.3479795]
[1769707501966,0.736,2846.0,2844.7,4.3479795]
[1769707502351,0.87845672,2845.9,2844.7,0.39545268]
[1769707502693,0.87842126,2846.1,2844.7,4.15724636]
[1769707502851,0.736,2845.8,2844.7,4.15724636]
[1769707503049,0.736,2845.8,2844.7,3.27842941]
[1769707503453,0.736,2845.8,2844.6,0.002]
[1769707503656,0.736,2845.8,2844.6,0.88085758]
[1769707503850,0.87842126,2846.1,2844.7,3.82579905]
[1769707504086,0.736,2845.7,2844.8,0.38277991]
[1769707504677,0.736,2845.7,2844.8,1.26156966]
[1769707504872,3.95351152,2846.2,2844.8,1.26156966]
[1769707505047,0.87837708,2846.2,2844.9,2.61923178]
[1769707505468,3.51442729,2846.3,2844.9,2.61923178]
[1769707505469,0.87934279,2846.3,2844.9,2.61923178]
[1769707505785,0.001,2846.3,2845.1,2.29511458]
[1769707506257,0.736,2846.2,2845.1,2.29511458]
[1769707506650,0.736,2846.2,2845.2,0.87867285]
[1769707506867,0.736,2846.2,2845.0,0.38808014]
[1769707506868,1.61436525,2846.2,2845.0,0.38808014]
[1769707507046,5.56787677,2846.2,2844.8,1.26155088]
[1769707507252,4.83187677,2846.2,2844.8,0.38277991]
[1769707507476,0.736,2846.1,2845.0,0.87871491]
[1769707507679,0.736,2846.1,2844.6,0.002]
[1769707507680,3.95351152,2846.0,2843.2,0.002]
[1769707507886,3.95351152,2846.0,2841.3,7.97057805]
[1769707507887,0.0773252,2842.3,2841.3,7.97057805]
[1769707508087,0.0773252,2842.3,2840.7,28.01639103]
[1769707508088,5.52789422,2841.1,2840.7,28.01639103]
[1769707508384,0.0773252,2842.3,2840.7,28.01639103]
[1769707508385,0.736,2841.0,2840.7,0.10570266]
[1769707508687,0.736,2841.0,2840.0,0.002]
[1769707508688,0.88000281,2840.9,2840.6,0.10570266]
[1769707508900,0.10570266,2840.7,2840.5,0.10570266]
[1769707509186,6.24770793,2840.7,2839.9,0.10570266]
[1769707509397,14.82030884,2840.6,2839.8,0.10570266]
[1769707509597,14.82030884,2840.6,2839.9,0.10570266]
[1769707509915,0.10570266,2839.8,2839.7,0.10570266]
[1769707510051,14.82030884,2840.5,2839.4,0.10570266]
[1769707510052,15.55630884,2840.5,2839.4,0.10570266]
[1769707510253,14.82030884,2840.4,2839.1,0.10570266]
[1769707510482,9.00970886,2840.3,2839.2,0.10570266]
[1769707510702,14.82030884,2840.4,2840.2,0.10570266]
[1769707510857,0.87978603,2841.6,2840.9,0.10570266]
[1769707511051,0.736,2841.5,2841.1,0.10570266]
[1769707511268,2.61537508,2841.0,2840.8,0.10570266]
[1769707511468,0.736,2841.4,2840.8,0.10570266]
[1769707511759,14.82030884,2841.3,2840.6,0.10570266]
[1769707511960,14.82030884,2841.3,2840.8,0.10570266]
[1769707512192,14.82030884,2841.2,2841.0,0.10570266]
[1769707512495,0.736,2841.2,2841.0,0.10570266]
[1769707512784,1.61591062,2841.2,2841.0,0.10570266]
[1769707512956,14.82030884,2841.1,2840.9,0.10570266]
[1769707513160,18.51847913,2841.1,2840.6,0.10570266]
[1769707513387,14.82030884,2841.0,2840.8,0.10570266]
[1769707513601,14.82030884,2841.2,2841.1,0.10570266]
[1769707513815,0.736,2841.2,2841.1,0.10365267]
[1769707514023,0.66277814,2841.2,2841.1,0.10365267]
[1769707514614,3.51844717,2842.2,2841.5,0.10570266]
[1769707514790,0.47048231,2842.2,2841.4,0.10570266]
[1769707515123,0.736,2842.1,2841.6,0.10570266]
[1769707515291,0.736,2842.0,2841.6,0.10365267]
[1769707516200,0.736,2842.0,2841.4,0.10570266]
[1769707516398,0.8796003,2842.3,2841.8,0.10570266]
[1769707516619,0.736,2842.2,2841.6,0.10570266]
[1769707516796,0.87963125,2842.1,2841.8,0.10570266]
[1769707517118,0.87963125,2842.1,2841.4,4.07497584]
[1769707517440,0.87963125,2842.1,2841.7,0.10570266]
[1769707517724,0.87963125,2842.1,2841.4,4.07497584]
[1769707517908,0.87963125,2842.1,2841.6,0.10570266]
[1769707518091,0.87963125,2842.1,2841.4,4.07497584]
[1769707518092,0.736,2842.0,2841.4,4.07497584]
[1769707518286,0.736,2842.0,2841.6,0.10570266]
[1769707518490,0.736,2842.0,2841.5,0.05651645]
[1769707518716,0.87969316,2841.9,2841.5,0.05651645]
[1769707518919,4.76813458,2842.0,2841.5,0.05651645]
[1769707518920,0.87956936,2842.3,2841.7,0.10570266]
[1769707519124,0.737,2841.9,2841.4,0.10570266]
[1769707519624,0.737,2841.9,2841.2,0.10570266]
[1769707520224,0.737,2841.9,2840.8,0.10570266]
[1769707520388,0.737,2841.9,2841.0,0.10570266]
[1769707520792,0.87972411,2841.8,2841.2,0.10570266]
[1769707521797,0.737,2841.7,2841.2,0.10570266]
[1769707521998,0.737,2841.7,2841.0,0.10570266]
[1769707522479,0.737,2841.7,2840.3,3.96927318]
[1769707522480,1.06615783,2839.5,2838.1,0.10570266]
[1769707522605,1.06615783,2839.5,2837.3,0.10570266]
[1769707522606,0.1824639,2839.1,2837.7,3.96927318]
[1769707522799,0.1824639,2839.1,2835.9,1.70060894]
[1769707522800,1.61759821,2839.0,2838.2,4.07497584]
[1769707522997,1.61759821,2839.0,2837.8,0.10570266]
[1769707523197,2.50207783,2839.0,2838.5,0.09864713]
[1769707523437,0.1024,2838.9,2837.1,4.85045218]
[1769707523645,0.737,2838.8,2837.1,3.96927318]
[1769707523795,0.737,2838.8,2837.1,4.85043396]
[1769707524002,0.737,2838.8,2837.3,3.96927318]
[1769707524544,0.737,2838.7,2837.6,4.06792031]
[1769707524751,0.88071584,2838.6,2837.6,4.06792031]
[1769707525241,0.88071584,2838.6,2837.3,1.70976549]
[1769707525464,0.737,2838.5,2837.3,1.70976549]
[1769707525824,1.39477376,2838.6,2837.3,2.59088383]
[1769707526027,0.737,2838.4,2837.4,1.70976549]
[1769707526623,1.39477376,2838.6,2837.4,1.70976549]
[1769707526834,0.737,2838.5,2837.4,1.70976549]
[1769707527005,0.8807779,2838.4,2837.4,1.70976549]
[1769707527201,0.737,2838.4,2837.7,1.70976549]
[1769707527733,0.737,2838.6,2837.7,1.70976549]
[1769707528219,0.737,2838.6,2837.7,1.69336326]
[1769707528942,3.52134652,2839.9,2837.9,1.70156438]
[1769707529119,0.737,2839.1,2838.1,1.70156438]
[1769707531506,0.737,2839.2,2838.1,1.70156438]
[1769707532432,0.737,2839.1,2838.1,1.70156438]
[1769707533549,0.88059175,2839.0,2838.1,1.70156438]
[1769707533863,0.88058171,2839.1,2838.3,1.70156438]
[1769707534062,0.737,2839.5,2838.3,1.80021151]
[1769707534257,0.88040569,2839.6,2838.3,1.80021151]
[1769707534462,0.88040569,2839.6,2838.3,1.70156438]
[1769707534762,1.61740569,2839.6,2838.3,1.70156438]
[1769707534927,0.88040569,2839.6,2838.3,1.70156438]
[1769707535133,3.52162276,2839.7,2838.3,1.70156438]
[1769707535134,0.88039437,2839.7,2838.3,1.70156438]
[1769707535569,3.52139026,2839.8,2838.4,1.70156438]
[1769707536434,0.737,2839.7,2838.4,1.70156438]
[1769707537235,3.52149874,2839.9,2838.4,1.70156438]
[1769707537436,0.737,2839.8,2838.4,1.70156438]
[1769707537963,0.88037468,2839.7,2838.5,1.70156438]
[1769707538168,0.88037468,2839.7,2838.5,1.68680237]
[1769707540035,3.52149874,2839.9,2838.6,1.69418337]
[1769707541478,0.737,2839.8,2838.6,1.69418337]
[1769707542265,0.88037468,2839.7,2838.7,1.69418337]
[1769707543246,0.13285808,2838.7,2838.0,1.69418337]
[1769707543873,0.88037468,2839.7,2838.2,1.62775433]
[1769707544071,0.88043669,2839.5,2838.0,3.52357031]
[1769707544275,0.88043669,2839.5,2838.3,1.62775433]
[1769707544575,0.737,2839.4,2838.3,1.62775433]
[1769707545404,0.88043669,2839.5,2838.3,1.62775433]
[1769707545563,3.52100278,2840.3,2838.3,1.62775433]
[1769707545760,4.25900278,2840.3,2838.3,1.62775433]
[1769707546194,0.001,2839.7,2838.5,1.62775433]
[1769707548293,0.001,2839.7,2838.6,1.62775433]
[1769707550995,0.001,2839.7,2838.7,0.88068482]
[1769707551186,0.001,2839.7,2838.8,1.62775433]
[1769707552897,0.001,2839.7,2839.0,1.62775433]
[1769707554204,1.61709575,2840.6,2838.9,1.62725433]
[1769707554593,0.88009575,2840.6,2838.9,1.62725433]
[1769707554793,1.61709575,2840.6,2838.9,1.62725433]
[1769707555095,1.61709575,2840.6,2839.1,1.62725433]
[1769707556907,3.52028146,2840.7,2839.2,1.62725433]
[1769707557197,0.737,2840.6,2839.2,1.62725433]
[1769707557773,0.737,2840.5,2839.2,1.62725433]
[1769707557973,0.737,2840.4,2839.2,1.62725433]
[1769707558201,0.738,2840.4,2839.2,1.62725433]
[1769707558829,0.001,2840.4,2839.2,1.62725433]
[1769707559113,0.001,2840.4,2839.4,1.62725433]
[1769707559802,0.28550091,2840.8,2839.4,1.62675433]
[1769707560007,1.16553709,2840.8,2839.4,1.62675433]
[1769707560382,0.28550091,2840.8,2839.4,1.62675433]
[1769707560708,0.88080594,2841.6,2839.4,1.52224874]
[1769707560920,0.88080594,2841.6,2839.5,1.52224874]
[1769707561095,0.001,2841.6,2839.7,1.52224874]
[1769707563002,0.001,2841.6,2839.9,1.52224874]
[1769707563701,0.8796003,2842.2,2840.0,1.52174874]
[1769707565000,0.8796003,2842.2,2840.2,1.52174874]
[1769707565202,0.737,2842.1,2840.2,1.52174874]
[1769707565407,8.54075771,2841.7,2840.2,1.52174874]
[1769707565903,0.1024,2841.6,2838.6,1.52174874]
[1769707566236,0.1024,2841.6,2840.0,1.52174874]
[1769707567044,0.87984796,2841.4,2840.0,2.40202885]
[1769707567338,0.87984796,2841.4,2840.1,1.52174874]
[1769707569124,0.98209316,2841.9,2840.3,1.52174874]
[1769707570206,0.001,2841.4,2840.3,1.52174874]
[1769707571929,0.738,2841.4,2840.3,1.52174874]
[1769707573107,0.87987892,2841.3,2838.7,3.52266445]
[1769707573415,0.87987892,2841.3,2838.9,0.99279307]
[1769707574528,0.87987892,2841.3,2839.1,0.99279307]
[1769707575147,0.87987892,2841.3,2839.1,0.50742827]
[1769707575307,0.87987892,2841.3,2839.4,0.99279307]
[1769707576420,0.87987892,2841.3,2839.6,0.99279307]
[1769707577227,3.52051571,2841.4,2839.8,0.99279307]
[1769707579353,0.47825126,2841.3,2839.4,0.88044782]
[1769707579520,3.52051571,2841.4,2839.7,0.99279307]
[1769707580238,3.52051571,2841.4,2839.8,0.99279307]
[1769707582032,3.99876697,2841.4,2840.0,0.002]
[1769707582244,0.47825126,2841.3,2840.0,0.002]
[1769707582552,0.47825126,2841.3,2839.8,0.002]
[1769707582553,0.47825126,2841.2,2839.8,0.002]
[1769707583137,0.001,2841.4,2839.8,0.99479307]
[1769707583348,0.87997184,2841.0,2839.8,0.99479307]
[1769707584763,1.61697184,2841.0,2839.8,0.99479307]
[1769707585177,1.61697184,2841.0,2839.8,0.002]
[1769707587268,0.47825126,2840.9,2838.8,0.88063585]
[1769707587431,0.47825126,2840.9,2838.9,0.99426328]
[1769707588153,0.47825126,2840.4,2838.9,0.99426328]
[1769707589253,0.88018871,2840.3,2838.9,0.99426328]
[1769707590867,0.88018871,2840.3,2839.0,0.99426328]
[1769707591376,0.737,2840.8,2839.2,0.99426328]
[1769707591669,0.87997184,2841.0,2839.2,0.99426328]
[1769707591972,0.737,2840.9,2839.3,0.99426328]
[1769707593170,9.28977082,2840.3,2838.6,0.95300229]
[1769707593371,0.8802197,2840.2,2838.6,0.95300229]
[1769707593547,0.8802197,2840.2,2838.7,0.95100229]
[1769707593953,0.8802197,2840.2,2838.6,0.88271164]
[1769707593954,0.88020515,2840.3,2839.5,0.002]
[1769707594184,0.88003379,2840.8,2839.5,0.95300229]
[1769707595083,0.88003379,2840.8,2839.5,0.002]
[1769707596171,0.88003379,2840.8,2839.5,0.95300229]
[1769707596572,0.737,2840.7,2839.5,0.95300229]
[1769707596775,0.737,2840.7,2839.5,0.002]
[1769707597468,0.88009575,2840.6,2839.5,0.002]
[1769707598497,9.28977082,2840.5,2839.3,0.002]
[1769707599297,9.28977082,2840.5,2838.8,0.95100229]
[1769707599298,0.47825126,2840.4,2838.8,0.95100229]
[1769707599608,0.88018871,2840.3,2838.8,0.95100229]
[1769707601210,0.88018871,2840.3,2838.9,0.95100229]
[1769707601415,0.737,2840.2,2838.9,0.95100229]
[1769707601715,0.88025069,2840.1,2839.1,0.95100229]
[1769707602212,1.61724286,2840.2,2839.1,0.95100229]
[1769707605419,1.61724286,2840.2,2839.2,0.95100229]
[1769707606409,0.88024286,2840.2,2839.2,0.95100229]
[1769707607326,0.88024286,2840.2,2839.3,0.002]
[1769707610208,0.88024286,2840.2,2839.3,0.95300229]
[1769707611134,0.88024286,2840.2,2839.3,0.002]
[1769707611535,1.35849412,2840.2,2839.0,0.002]
[1769707612000,0.88024286,2840.2,2839.0,0.95300229]
[1769707612407,0.737,2840.1,2839.0,0.95300229]
[1769707614334,0.88028169,2840.0,2839.0,0.95300229]
[1769707614645,0.88028169,2840.0,2839.1,0.95100229]
[1769707616134,3.52078916,2840.3,2839.3,0.97272926]